[Event "Early-Titled-Tuesday-Blitz-March-26-2024"]
[Site "Chess.com"]
[Date "2024.03.26"]
[Round "2"]
[White "deribas12345"]
[Black "KuzubovYuriy"]
[Result "0-1"]
[WhiteElo "2612"]
[BlackElo "2911"]
[TimeControl "180+1"]
[EndTime "8:18:04 PDT"]
[Termination "KuzubovYuriy won by resignation"]

1. d4 {[%clk 0:03:00.9]} 1... d5 {[%clk 0:02:58]} 2. c4 {[%clk 0:02:59]} 2... e6
{[%clk 0:02:58.2]} 3. Nc3 {[%clk 0:02:59.5]} 3... a6 {[%clk 0:02:58.2]} 4. cxd5
{[%clk 0:02:55.9]} 4... exd5 {[%clk 0:02:59.1]} 5. Nf3 {[%clk 0:02:51.9]} 5...
c6 {[%clk 0:02:57.4]} 6. Bg5 {[%clk 0:02:50.9]} 6... Be7 {[%clk 0:02:50.5]} 7.
Bxe7 {[%clk 0:02:50.6]} 7... Nxe7 {[%clk 0:02:49.2]} 8. e3 {[%clk 0:02:51.5]}
8... Bf5 {[%clk 0:02:48.3]} 9. Bd3 {[%clk 0:02:50.1]} 9... Nd7 {[%clk
0:02:46.2]} 10. O-O {[%clk 0:02:49.5]} 10... O-O {[%clk 0:02:46.1]} 11. a3
{[%clk 0:02:38.6]} 11... Nb6 {[%clk 0:02:36]} 12. Bxf5 {[%clk 0:02:32.8]} 12...
Nxf5 {[%clk 0:02:34.8]} 13. Qd3 {[%clk 0:02:31.4]} 13... Nd6 {[%clk 0:02:32]}
14. b3 {[%clk 0:02:30.9]} 14... Qe7 {[%clk 0:02:29]} 15. Rfe1 {[%clk 0:02:29.2]}
15... Rfe8 {[%clk 0:02:27.1]} 16. a4 {[%clk 0:02:23.9]} 16... a5 {[%clk
0:02:23.3]} 17. Nd2 {[%clk 0:02:20.4]} 17... f5 {[%clk 0:01:56]} 18. Nf3 {[%clk
0:02:15.4]} 18... Nd7 {[%clk 0:01:54.7]} 19. Rab1 {[%clk 0:02:11.4]} 19... Ne4
{[%clk 0:01:50]} 20. Qc2 {[%clk 0:02:07.7]} 20... Ra6 {[%clk 0:01:33.3]} 21. Ne2
{[%clk 0:02:04.3]} 21... g5 {[%clk 0:01:32.1]} 22. Ng3 {[%clk 0:01:59.3]} 22...
Rf8 {[%clk 0:01:19.4]} 23. Nd2 {[%clk 0:01:35.5]} 23... Nd6 {[%clk 0:01:09]} 24.
f3 {[%clk 0:01:26.2]} 24... Qg7 {[%clk 0:00:59.3]} 25. Kh1 {[%clk 0:01:22.8]}
25... Raa8 {[%clk 0:00:56.7]} 26. e4 {[%clk 0:01:05.6]} 26... f4 {[%clk
0:00:35.4]} 27. Ne2 {[%clk 0:01:03.9]} 27... Rae8 {[%clk 0:00:32.8]} 28. e5
{[%clk 0:01:01.7]} 28... Nf5 {[%clk 0:00:33]} 29. Nf1 {[%clk 0:01:02]} 29... g4
{[%clk 0:00:27.9]} 30. Rbd1 {[%clk 0:00:45.9]} 30... Nh4 {[%clk 0:00:22.6]} 31.
Ng1 {[%clk 0:00:41.5]} 31... Kh8 {[%clk 0:00:19]} 32. fxg4 {[%clk 0:00:30.6]}
32... Qxg4 {[%clk 0:00:18.5]} 33. h3 {[%clk 0:00:30.9]} 33... Qg7 {[%clk
0:00:17.9]} 34. Qf2 {[%clk 0:00:29.6]} 34... Qh6 {[%clk 0:00:10.2]} 35. Nf3
{[%clk 0:00:27.1]} 35... Nf5 {[%clk 0:00:10]} 36. Rd3 {[%clk 0:00:19.7]} 36...
Rg8 {[%clk 0:00:10]} 37. N3d2 {[%clk 0:00:11.1]} 37... Nf8 {[%clk 0:00:08.9]}
38. Nh2 {[%clk 0:00:04.9]} 38... Ng3+ {[%clk 0:00:07.8]} 39. Kg1 {[%clk
0:00:05.3]} 39... Ne6 {[%clk 0:00:08.1]} 40. Ndf1 {[%clk 0:00:03.8]} 40... Ref8
{[%clk 0:00:07.5]} 41. Ng4 {[%clk 0:00:03]} 41... Rxg4 {[%clk 0:00:06.7]} 42.
Nh2 {[%clk 0:00:03.4]} 42... Rgg8 {[%clk 0:00:06.7]} 0-1

[Event "Early-Titled-Tuesday-Blitz-March-26-2024"]
[Site "Chess.com"]
[Date "2024.03.26"]
[Round "2"]
[White "Kotofeyca"]
[Black "Better_Chess_Faster"]
[Result "1-0"]
[WhiteElo "2482"]
[BlackElo "2172"]
[TimeControl "180+1"]
[EndTime "8:18:04 PDT"]
[Termination "Kotofeyca won on time"]

1. d4 {[%clk 0:03:00.9]} 1... f5 {[%clk 0:02:58.3]} 2. g3 {[%clk 0:02:59.9]}
2... Nf6 {[%clk 0:02:57.5]} 3. Bg2 {[%clk 0:03:00.5]} 3... e6 {[%clk 0:02:57.5]}
4. Nd2 {[%clk 0:03:01.1]} 4... d5 {[%clk 0:02:57.5]} 5. Nh3 {[%clk 0:02:56.5]}
5... Bd6 {[%clk 0:02:56.4]} 6. Nf3 {[%clk 0:02:54.8]} 6... h6 {[%clk 0:02:55.3]}
7. Bf4 {[%clk 0:02:44.7]} 7... g5 {[%clk 0:02:53.8]} 8. Bxd6 {[%clk 0:02:44.2]}
8... cxd6 {[%clk 0:02:53.7]} 9. Nd2 {[%clk 0:02:33.4]} 9... Nc6 {[%clk
0:02:52.5]} 10. e3 {[%clk 0:02:33.1]} 10... O-O {[%clk 0:02:46]} 11. O-O {[%clk
0:02:32.5]} 11... b6 {[%clk 0:02:41.8]} 12. c3 {[%clk 0:02:29.7]} 12... Ba6
{[%clk 0:02:37.4]} 13. Re1 {[%clk 0:02:29.9]} 13... Ne4 {[%clk 0:02:27.4]} 14.
f3 {[%clk 0:01:53.8]} 14... Nxd2 {[%clk 0:02:23.9]} 15. Qxd2 {[%clk 0:01:54.7]}
15... Rc8 {[%clk 0:02:18.1]} 16. e4 {[%clk 0:01:52.8]} 16... Qf6 {[%clk
0:02:13.5]} 17. exd5 {[%clk 0:01:48]} 17... exd5 {[%clk 0:02:13]} 18. f4 {[%clk
0:01:48.4]} 18... g4 {[%clk 0:02:04.1]} 19. Bxd5+ {[%clk 0:01:48.2]} 19... Kg7
{[%clk 0:02:02.2]} 20. Re6 {[%clk 0:01:40.6]} 20... Qf7 {[%clk 0:01:44.4]} 21.
Nf2 {[%clk 0:00:56]} 21... Ne7 {[%clk 0:01:20.5]} 22. Bb3 {[%clk 0:00:53.9]}
22... d5 {[%clk 0:01:13.7]} 23. Rae1 {[%clk 0:00:52.7]} 23... Rc7 {[%clk
0:01:07.7]} 24. Nd3 {[%clk 0:00:47.9]} 24... Bxd3 {[%clk 0:01:03]} 25. Qxd3
{[%clk 0:00:48.8]} 25... Rd8 {[%clk 0:00:58.7]} 26. Qe2 {[%clk 0:00:42.5]} 26...
Ng6 {[%clk 0:00:50.8]} 27. Qb5 {[%clk 0:00:31.5]} 27... h5 {[%clk 0:00:47.2]}
28. Bxd5 {[%clk 0:00:28.3]} 28... Qd7 {[%clk 0:00:36.4]} 29. Qxd7+ {[%clk
0:00:25.6]} 29... Rdxd7 {[%clk 0:00:36.6]} 30. Bb3 {[%clk 0:00:24.3]} 30... h4
{[%clk 0:00:33.1]} 31. Kg2 {[%clk 0:00:20.6]} 31... h3+ {[%clk 0:00:30.5]} 32.
Kf2 {[%clk 0:00:20.4]} 32... Ne7 {[%clk 0:00:22.7]} 33. R6e5 {[%clk 0:00:19]}
33... Kf6 {[%clk 0:00:18.4]} 34. Be6 {[%clk 0:00:18.2]} 34... Rd6 {[%clk
0:00:16.4]} 35. Bb3 {[%clk 0:00:17.7]} 35... a5 {[%clk 0:00:15]} 36. Re6+ {[%clk
0:00:17.1]} 36... Rxe6 {[%clk 0:00:14.2]} 37. Rxe6+ {[%clk 0:00:18]} 37... Kg7
{[%clk 0:00:12.5]} 38. Rxb6 {[%clk 0:00:18.6]} 38... Nc6 {[%clk 0:00:10.8]} 39.
d5 {[%clk 0:00:17.9]} 39... Nd8 {[%clk 0:00:08.8]} 40. d6 {[%clk 0:00:18]} 40...
Rd7 {[%clk 0:00:09]} 41. c4 {[%clk 0:00:18.2]} 41... Nb7 {[%clk 0:00:06.3]} 42.
Ba4 {[%clk 0:00:17.9]} 42... Rf7 {[%clk 0:00:05.4]} 43. d7 {[%clk 0:00:16]}
43... Nd8 {[%clk 0:00:05.8]} 44. c5 {[%clk 0:00:16]} 44... Re7 {[%clk
0:00:04.9]} 45. c6 {[%clk 0:00:16.4]} 45... Nxc6 {[%clk 0:00:03]} 46. Bxc6
{[%clk 0:00:16]} 46... Rxd7 {[%clk 0:00:03.3]} 47. Bxd7 {[%clk 0:00:15.7]} 1-0

[Event "Early-Titled-Tuesday-Blitz-March-26-2024"]
[Site "Chess.com"]
[Date "2024.03.26"]
[Round "2"]
[White "dropstoneDP"]
[Black "Gennady_Kozlov"]
[Result "1-0"]
[WhiteElo "2995"]
[BlackElo "2662"]
[TimeControl "180+1"]
[EndTime "8:18:05 PDT"]
[Termination "dropstoneDP won by resignation"]

1. e4 {[%clk 0:03:00.9]} 1... c6 {[%clk 0:02:59.3]} 2. d4 {[%clk 0:03:00.5]}
2... d5 {[%clk 0:02:59.4]} 3. exd5 {[%clk 0:03:00.6]} 3... cxd5 {[%clk
0:02:59.2]} 4. Nf3 {[%clk 0:03:00.5]} 4... Nf6 {[%clk 0:02:58.9]} 5. Ne5 {[%clk
0:02:59.6]} 5... Nc6 {[%clk 0:02:58.1]} 6. c3 {[%clk 0:02:59.5]} 6... g6 {[%clk
0:02:55.4]} 7. Bf4 {[%clk 0:02:57.4]} 7... Bg7 {[%clk 0:02:54.4]} 8. Be2 {[%clk
0:02:54.6]} 8... O-O {[%clk 0:02:53.9]} 9. Nd2 {[%clk 0:02:54.2]} 9... Nxe5
{[%clk 0:02:53.7]} 10. Bxe5 {[%clk 0:02:53.9]} 10... Ne8 {[%clk 0:02:52.1]} 11.
Bxg7 {[%clk 0:02:53]} 11... Nxg7 {[%clk 0:02:53]} 12. O-O {[%clk 0:02:52.8]}
12... Qb6 {[%clk 0:02:50.7]} 13. Qb3 {[%clk 0:02:52.2]} 13... Bd7 {[%clk
0:02:48.9]} 14. Qxb6 {[%clk 0:02:49.8]} 14... axb6 {[%clk 0:02:48.4]} 15. a3
{[%clk 0:02:50.7]} 15... Rfe8 {[%clk 0:02:44.4]} 16. Bd3 {[%clk 0:02:46]} 16...
f6 {[%clk 0:02:43.2]} 17. c4 {[%clk 0:02:40.9]} 17... Bc6 {[%clk 0:02:40.6]} 18.
Rfe1 {[%clk 0:02:39.3]} 18... e5 {[%clk 0:02:38.5]} 19. cxd5 {[%clk 0:02:37.9]}
19... Bxd5 {[%clk 0:02:37.4]} 20. dxe5 {[%clk 0:02:38.4]} 20... fxe5 {[%clk
0:02:37]} 21. Bc4 {[%clk 0:02:38.1]} 21... Rad8 {[%clk 0:02:34.9]} 22. Rac1
{[%clk 0:02:34.9]} 22... Nf5 {[%clk 0:02:29.8]} 23. Bxd5+ {[%clk 0:02:33.1]}
23... Rxd5 {[%clk 0:02:28.7]} 24. Ne4 {[%clk 0:02:34]} 24... Kg7 {[%clk
0:02:21.6]} 25. Kf1 {[%clk 0:02:26.6]} 25... Re7 {[%clk 0:02:18.4]} 26. Rcd1
{[%clk 0:02:17.6]} 26... Rd4 {[%clk 0:02:10.1]} 27. Ng5 {[%clk 0:02:11.3]} 27...
Kf6 {[%clk 0:02:02.5]} 28. Ne4+ {[%clk 0:02:10.9]} 28... Kg7 {[%clk 0:02:01.3]}
29. Nc3 {[%clk 0:02:06.7]} 29... Red7 {[%clk 0:01:57.7]} 30. Rb1 {[%clk
0:01:30.3]} 30... Kf6 {[%clk 0:01:52.6]} 31. Re2 {[%clk 0:01:30.3]} 31... Rh4
{[%clk 0:01:43]} 32. h3 {[%clk 0:01:29.3]} 32... Rf4 {[%clk 0:01:42.3]} 33. Kg1
{[%clk 0:01:28.8]} 33... Nd4 {[%clk 0:01:36.2]} 34. Re3 {[%clk 0:01:27.5]} 34...
Nc2 {[%clk 0:01:33.5]} 35. Re2 {[%clk 0:01:26.4]} 35... Nd4 {[%clk 0:01:33.2]}
36. Ree1 {[%clk 0:01:23.9]} 36... Nc2 {[%clk 0:01:29.2]} 37. Re4 {[%clk
0:01:04.1]} 37... Rxe4 {[%clk 0:01:20.4]} 38. Nxe4+ {[%clk 0:01:05]} 38... Kf5
{[%clk 0:01:20.1]} 39. f3 {[%clk 0:00:53.5]} 39... Rd3 {[%clk 0:01:12.5]} 40.
Rc1 {[%clk 0:00:52.8]} 40... Nd4 {[%clk 0:01:08.5]} 41. Rc7 {[%clk 0:00:52.4]}
41... Rb3 {[%clk 0:00:59.9]} 42. Rf7+ {[%clk 0:00:50.5]} 42... Ke6 {[%clk
0:00:59.1]} 43. Rxh7 {[%clk 0:00:49.8]} 43... Rxb2 {[%clk 0:00:58.1]} 44. Ng3
{[%clk 0:00:44]} 44... Nb5 {[%clk 0:00:53.1]} 45. Rg7 {[%clk 0:00:43]} 45... Kf6
{[%clk 0:00:51.8]} 46. Rxb7 {[%clk 0:00:43.3]} 46... Nxa3 {[%clk 0:00:51.6]} 47.
Ne4+ {[%clk 0:00:43.9]} 47... Ke6 {[%clk 0:00:51.2]} 48. Rg7 {[%clk 0:00:44.1]}
48... Nc4 {[%clk 0:00:48.2]} 49. Rxg6+ {[%clk 0:00:44.3]} 49... Ke7 {[%clk
0:00:48.7]} 50. h4 {[%clk 0:00:41]} 50... b5 {[%clk 0:00:48.1]} 51. h5 {[%clk
0:00:40.2]} 51... Rb1+ {[%clk 0:00:45.6]} 52. Kh2 {[%clk 0:00:39.7]} 52... Kf7
{[%clk 0:00:43.1]} 53. Nd6+ {[%clk 0:00:35.3]} 53... Ke7 {[%clk 0:00:42.6]} 54.
Nxc4 {[%clk 0:00:33.1]} 54... bxc4 {[%clk 0:00:42.4]} 55. Rc6 {[%clk 0:00:33.4]}
55... Rc1 {[%clk 0:00:36.1]} 56. h6 {[%clk 0:00:33.7]} 56... Kf7 {[%clk
0:00:36.3]} 57. Rc7+ {[%clk 0:00:32.2]} 57... Kg8 {[%clk 0:00:35.3]} 58. g4
{[%clk 0:00:32.7]} 58... c3 {[%clk 0:00:32.8]} 59. g5 {[%clk 0:00:33.1]} 59...
Rf1 {[%clk 0:00:29.8]} 60. Kg2 {[%clk 0:00:32.3]} 60... Rd1 {[%clk 0:00:29.7]}
61. g6 {[%clk 0:00:32.2]} 61... Rd8 {[%clk 0:00:27.3]} 62. Rxc3 {[%clk
0:00:32.3]} 62... Re8 {[%clk 0:00:25.2]} 63. Rc6 {[%clk 0:00:32]} 63... e4
{[%clk 0:00:25.2]} 64. fxe4 {[%clk 0:00:32.9]} 1-0

[Event "Early-Titled-Tuesday-Blitz-March-26-2024"]
[Site "Chess.com"]
[Date "2024.03.26"]
[Round "2"]
[White "Winner_7777"]
[Black "baki83"]
[Result "0-1"]
[WhiteElo "2577"]
[BlackElo "2859"]
[TimeControl "180+1"]
[EndTime "8:18:05 PDT"]
[Termination "baki83 won by checkmate"]

1. d4 {[%clk 0:03:00.9]} 1... d5 {[%clk 0:02:59.5]} 2. c4 {[%clk 0:03:01.6]}
2... e6 {[%clk 0:02:59.4]} 3. Nc3 {[%clk 0:03:02.3]} 3... Nf6 {[%clk 0:02:57.9]}
4. cxd5 {[%clk 0:03:03]} 4... exd5 {[%clk 0:02:58]} 5. Bg5 {[%clk 0:03:03.5]}
5... Be7 {[%clk 0:02:58]} 6. e3 {[%clk 0:03:04.1]} 6... c6 {[%clk 0:02:58.5]} 7.
Bd3 {[%clk 0:03:04.6]} 7... h6 {[%clk 0:02:57.5]} 8. Bh4 {[%clk 0:03:04.5]} 8...
O-O {[%clk 0:02:57.9]} 9. Qc2 {[%clk 0:03:05]} 9... Ne8 {[%clk 0:02:56]} 10. Bg3
{[%clk 0:02:51.5]} 10... Nd6 {[%clk 0:02:50]} 11. Nf3 {[%clk 0:02:47.8]} 11...
a5 {[%clk 0:02:48.1]} 12. O-O {[%clk 0:02:47.8]} 12... Na6 {[%clk 0:02:47.8]}
13. a3 {[%clk 0:02:47]} 13... Nc7 {[%clk 0:02:42.9]} 14. Ne5 {[%clk 0:02:45.9]}
14... Bd7 {[%clk 0:02:27.3]} 15. Na4 {[%clk 0:01:56.8]} 15... Be8 {[%clk
0:02:21.5]} 16. Nb6 {[%clk 0:01:42.1]} 16... Ra7 {[%clk 0:02:11.6]} 17. Na4
{[%clk 0:00:36.7]} 17... Ne6 {[%clk 0:01:56]} 18. f4 {[%clk 0:00:36.1]} 18... b5
{[%clk 0:01:54.3]} 19. Nc5 {[%clk 0:00:24.1]} 19... Nxc5 {[%clk 0:01:50.6]} 20.
Qxc5 {[%clk 0:00:24.2]} 20... Qa8 {[%clk 0:01:46.4]} 21. Qc2 {[%clk 0:00:23.4]}
21... f5 {[%clk 0:01:43.6]} 22. Rac1 {[%clk 0:00:18.9]} 22... Kh8 {[%clk
0:01:37.4]} 23. Be1 {[%clk 0:00:12.7]} 23... g6 {[%clk 0:01:22.5]} 24. Bd2
{[%clk 0:00:11.5]} 24... Nc4 {[%clk 0:01:21.3]} 25. Nxc4 {[%clk 0:00:07.3]}
25... dxc4 {[%clk 0:01:16.9]} 26. Be2 {[%clk 0:00:07.9]} 26... Bf7 {[%clk
0:01:17.3]} 27. Bf3 {[%clk 0:00:08.5]} 27... Bd5 {[%clk 0:01:17.6]} 28. e4
{[%clk 0:00:08.3]} 28... fxe4 {[%clk 0:01:12.2]} 29. Bxe4 {[%clk 0:00:09.2]}
29... Bf6 {[%clk 0:01:10.3]} 30. Be3 {[%clk 0:00:02.5]} 30... Bxe4 {[%clk
0:00:58.8]} 31. Qxe4 {[%clk 0:00:03.4]} 31... Re7 {[%clk 0:00:58.7]} 32. Qf3
{[%clk 0:00:04.1]} 32... Rfe8 {[%clk 0:00:57.7]} 33. Bf2 {[%clk 0:00:03.8]}
33... Re4 {[%clk 0:00:55.3]} 34. Rcd1 {[%clk 0:00:04.2]} 34... b4 {[%clk
0:00:50.7]} 35. f5 {[%clk 0:00:04.5]} 35... g5 {[%clk 0:00:50.4]} 36. Qh5 {[%clk
0:00:04.7]} 36... Bg7 {[%clk 0:00:43.8]} 37. f6 {[%clk 0:00:04.2]} 37... Bf8
{[%clk 0:00:44.2]} 38. h4 {[%clk 0:00:03.1]} 38... g4 {[%clk 0:00:34.2]} 39. Qg6
{[%clk 0:00:03.1]} 39... R8e6 {[%clk 0:00:33]} 40. Rde1 {[%clk 0:00:02.4]} 40...
c5 {[%clk 0:00:27.1]} 41. d5 {[%clk 0:00:01.5]} 41... Qxd5 {[%clk 0:00:25.3]}
42. Qf7 {[%clk 0:00:02.2]} 42... Qd8 {[%clk 0:00:20.3]} 43. Rxe4 {[%clk
0:00:00.9]} 43... Rxe4 {[%clk 0:00:20.2]} 44. Bg3 {[%clk 0:00:01.5]} 44... Re2
{[%clk 0:00:16.1]} 45. Bf4 {[%clk 0:00:01.6]} 45... Qa8 {[%clk 0:00:15.9]} 46.
Qg6 {[%clk 0:00:01.8]} 46... Qxg2# {[%clk 0:00:15.9]} 0-1

[Event "Early-Titled-Tuesday-Blitz-March-26-2024"]
[Site "Chess.com"]
[Date "2024.03.26"]
[Round "2"]
[White "Statham_01"]
[Black "vlad10898"]
[Result "0-1"]
[WhiteElo "2594"]
[BlackElo "2884"]
[TimeControl "180+1"]
[EndTime "8:18:07 PDT"]
[Termination "vlad10898 won by resignation"]

1. e4 {[%clk 0:03:00.9]} 1... e6 {[%clk 0:02:46.5]} 2. d4 {[%clk 0:02:58.6]}
2... d5 {[%clk 0:02:46.3]} 3. Bd3 {[%clk 0:02:59.1]} 3... dxe4 {[%clk
0:02:44.3]} 4. Bxe4 {[%clk 0:02:59.4]} 4... Nf6 {[%clk 0:02:44.1]} 5. Bf3 {[%clk
0:02:59.8]} 5... Be7 {[%clk 0:02:44.5]} 6. Ne2 {[%clk 0:02:59.9]} 6... c5 {[%clk
0:02:42.2]} 7. Be3 {[%clk 0:02:59.5]} 7... O-O {[%clk 0:02:42.4]} 8. Nbc3 {[%clk
0:02:59.6]} 8... Qa5 {[%clk 0:02:42.4]} 9. Qd2 {[%clk 0:02:59.2]} 9... Rd8
{[%clk 0:02:37.2]} 10. O-O {[%clk 0:02:37.2]} 10... Nc6 {[%clk 0:02:20.7]} 11.
Bxc6 {[%clk 0:02:26.2]} 11... bxc6 {[%clk 0:02:19.8]} 12. Nd5 {[%clk 0:02:25]}
12... Qxd2 {[%clk 0:02:11.6]} 13. Nxe7+ {[%clk 0:02:25.1]} 13... Kf8 {[%clk
0:02:11.9]} 14. Bxd2 {[%clk 0:02:22.5]} 14... Kxe7 {[%clk 0:02:09.7]} 15. Ba5
{[%clk 0:02:22]} 15... Rd7 {[%clk 0:01:34.2]} 16. dxc5 {[%clk 0:02:20.9]} 16...
Ba6 {[%clk 0:01:34]} 17. Rfe1 {[%clk 0:02:21.1]} 17... Rb8 {[%clk 0:01:19.5]}
18. b3 {[%clk 0:02:11.5]} 18... Ne4 {[%clk 0:01:09.4]} 19. c3 {[%clk 0:01:51.6]}
19... Bxe2 {[%clk 0:00:50.1]} 20. Rxe2 {[%clk 0:01:50.4]} 20... Rb5 {[%clk
0:00:26.8]} 21. Bb4 {[%clk 0:01:33.9]} 21... Nf6 {[%clk 0:00:26.6]} 22. a3
{[%clk 0:01:21.3]} 22... Rb8 {[%clk 0:00:24.5]} 23. f3 {[%clk 0:01:04]} 23...
Nd5 {[%clk 0:00:21.1]} 24. Rd2 {[%clk 0:01:01.3]} 24... a5 {[%clk 0:00:19.5]}
25. Bxa5 {[%clk 0:00:57.9]} 25... Rxb3 {[%clk 0:00:19.5]} 26. c4 {[%clk
0:00:56.5]} 26... Ne3 {[%clk 0:00:18]} 27. Rxd7+ {[%clk 0:00:56.3]} 27... Kxd7
{[%clk 0:00:18.9]} 28. Kf2 {[%clk 0:00:30.8]} 28... Nxc4 {[%clk 0:00:18.2]} 29.
Rd1+ {[%clk 0:00:30.5]} 29... Ke7 {[%clk 0:00:16.1]} 30. Bd8+ {[%clk 0:00:26.2]}
30... Ke8 {[%clk 0:00:16.4]} 31. a4 {[%clk 0:00:20.5]} 31... Ra3 {[%clk
0:00:15.1]} 32. a5 {[%clk 0:00:10.4]} 32... Nxa5 {[%clk 0:00:14.9]} 33. Rd6
{[%clk 0:00:10.9]} 33... Nb7 {[%clk 0:00:14.2]} 34. Rxc6 {[%clk 0:00:08.4]}
34... Nxd8 {[%clk 0:00:14]} 35. Rc7 {[%clk 0:00:08.9]} 35... Rc3 {[%clk
0:00:14.1]} 36. Kg3 {[%clk 0:00:08.1]} 36... e5 {[%clk 0:00:14.5]} 37. Kg4
{[%clk 0:00:07.5]} 37... Ne6 {[%clk 0:00:14.3]} 38. Rc8+ {[%clk 0:00:05.9]}
38... Kd7 {[%clk 0:00:14.7]} 39. Rh8 {[%clk 0:00:06.8]} 39... h6 {[%clk
0:00:14.2]} 40. h4 {[%clk 0:00:05.8]} 40... Rxc5 {[%clk 0:00:14.4]} 41. Kh5
{[%clk 0:00:06.2]} 41... e4+ {[%clk 0:00:13.7]} 42. Kg4 {[%clk 0:00:05.9]} 42...
e3 {[%clk 0:00:13.5]} 43. Kg3 {[%clk 0:00:06.5]} 43... Re5 {[%clk 0:00:12.8]}
0-1

[Event "Early-Titled-Tuesday-Blitz-March-26-2024"]
[Site "Chess.com"]
[Date "2024.03.26"]
[Round "2"]
[White "AnaKuchava"]
[Black "sorch29"]
[Result "1-0"]
[WhiteElo "2140"]
[BlackElo "2459"]
[TimeControl "180+1"]
[EndTime "8:18:08 PDT"]
[Termination "AnaKuchava won by resignation"]

1. d4 {[%clk 0:03:00.9]} 1... d5 {[%clk 0:02:55.4]} 2. Nf3 {[%clk 0:03:00.2]}
2... Nf6 {[%clk 0:02:54.8]} 3. c4 {[%clk 0:02:58.9]} 3... e6 {[%clk 0:02:55.1]}
4. Nc3 {[%clk 0:02:56.9]} 4... Be7 {[%clk 0:02:55.5]} 5. Bg5 {[%clk 0:02:53]}
5... O-O {[%clk 0:02:55.2]} 6. e3 {[%clk 0:02:50.7]} 6... b6 {[%clk 0:02:53.7]}
7. Bd3 {[%clk 0:02:49.9]} 7... Bb7 {[%clk 0:02:53.3]} 8. O-O {[%clk 0:02:49.1]}
8... Nbd7 {[%clk 0:02:51.6]} 9. Rc1 {[%clk 0:02:48.3]} 9... c5 {[%clk
0:02:47.8]} 10. Qe2 {[%clk 0:02:47.3]} 10... cxd4 {[%clk 0:02:26.3]} 11. exd4
{[%clk 0:02:35.9]} 11... dxc4 {[%clk 0:02:12.4]} 12. Bxc4 {[%clk 0:02:34.5]}
12... Rc8 {[%clk 0:02:12.5]} 13. Rfd1 {[%clk 0:02:32]} 13... Bxf3 {[%clk
0:02:11.8]} 14. gxf3 {[%clk 0:02:28.2]} 14... Nd5 {[%clk 0:01:25.3]} 15. Bxe7
{[%clk 0:01:54.3]} 15... Nxe7 {[%clk 0:00:59.1]} 16. Nb5 {[%clk 0:01:41.9]}
16... Nf6 {[%clk 0:00:33.9]} 17. Nxa7 {[%clk 0:01:37.4]} 17... Ra8 {[%clk
0:00:33.6]} 18. Nb5 {[%clk 0:01:34.4]} 18... Nfd5 {[%clk 0:00:30.8]} 19. Nc3
{[%clk 0:01:27.8]} 19... Nf4 {[%clk 0:00:28.8]} 20. Qe4 {[%clk 0:01:23.9]} 20...
Neg6 {[%clk 0:00:27]} 21. Kh1 {[%clk 0:01:24]} 21... Qh4 {[%clk 0:00:25.6]} 22.
Ne2 {[%clk 0:01:09.3]} 22... Ra5 {[%clk 0:00:20.5]} 23. Nxf4 {[%clk 0:00:53.2]}
23... Nxf4 {[%clk 0:00:19.3]} 24. d5 {[%clk 0:00:53.4]} 24... exd5 {[%clk
0:00:13.8]} 25. Bxd5 {[%clk 0:00:53.1]} 25... g6 {[%clk 0:00:11.3]} 26. Rc7
{[%clk 0:00:43.7]} 26... Kg7 {[%clk 0:00:10]} 27. Qe5+ {[%clk 0:00:37.1]} 27...
Qf6 {[%clk 0:00:10.3]} 28. Qxf6+ {[%clk 0:00:34.1]} 28... Kxf6 {[%clk
0:00:11.2]} 29. Bb3 {[%clk 0:00:33.4]} 29... Rh5 {[%clk 0:00:03.8]} 30. Rd6+
{[%clk 0:00:32.2]} 30... Kg7 {[%clk 0:00:03.7]} 31. Rxb6 {[%clk 0:00:27.8]}
31... Re5 {[%clk 0:00:04.1]} 32. Rc1 {[%clk 0:00:23.7]} 32... Rfe8 {[%clk
0:00:04]} 33. h4 {[%clk 0:00:19.9]} 33... Re1+ {[%clk 0:00:04.2]} 34. Rxe1
{[%clk 0:00:19.3]} 34... Rxe1+ {[%clk 0:00:05.1]} 35. Kh2 {[%clk 0:00:20]} 35...
h5 {[%clk 0:00:04.8]} 36. Rb7 {[%clk 0:00:19.1]} 36... Ne6 {[%clk 0:00:03.6]}
37. Bxe6 {[%clk 0:00:17.9]} 37... Rxe6 {[%clk 0:00:04.3]} 38. a4 {[%clk
0:00:15.5]} 38... Re2 {[%clk 0:00:03.2]} 39. Kg2 {[%clk 0:00:15.3]} 39... Re1
{[%clk 0:00:03.1]} 40. a5 {[%clk 0:00:14.7]} 40... Ra1 {[%clk 0:00:04]} 41. b4
{[%clk 0:00:14.8]} 41... Kf6 {[%clk 0:00:04.3]} 42. Rb6+ {[%clk 0:00:15.2]}
42... Kf5 {[%clk 0:00:04.7]} 43. a6 {[%clk 0:00:15.3]} 43... Kf4 {[%clk
0:00:04.5]} 44. b5 {[%clk 0:00:15.4]} 44... f5 {[%clk 0:00:03.7]} 45. Rxg6
{[%clk 0:00:13.4]} 45... Ra3 {[%clk 0:00:03.9]} 46. Rg5 {[%clk 0:00:11.3]} 46...
Rxf3 {[%clk 0:00:03.4]} 47. Rxf5+ {[%clk 0:00:11.8]} 47... Kxf5 {[%clk
0:00:04.3]} 48. Kxf3 {[%clk 0:00:12.5]} 1-0